[Event "Polish Youth 1st League 2022"]
[Site "Lublin"]
[Date "2022.06.28"]
[Round "4.1"]
[White "Madej, Marek"]
[Black "Wojdak, Jan"]
[Result "1-0"]
[ECO "C41"]
[WhiteElo "1978"]
[BlackElo "2144"]
[Annotator "RC"]
[PlyCount "89"]
[EventDate "2022.06.24"]
[EventType "team-tourn"]
[EventCountry "POL"]
[SourceTitle "playchess.com"]
[Source "ChessBase"]
[SourceQuality "1"]
[TimeControl "40/5400+30:1800+30"]

1. e4 {[%emt 0:00:07]} d6 {[%emt 0:00:04]} 2. d4 {[%emt 0:00:26]} Nf6 {[%emt 0:00:04]} 3. Nc3 {[%emt 0:00:21]} e5 {[%emt 0:00:05]} 4. Nf3 {[%emt 0:01:15]} Nbd7 {[%emt 0:00:12]} 5. Bc4 {[%emt 0:00:43]} Be7 {[%emt 0:00:12]} 6. O-O {[%emt 0:00:41]} Nb6 {[%emt 0:02:31]} 7. Bb3 {[%emt 0:00:40]} exd4 {[%emt 0:00:09]} 8. Qxd4 {[%emt 0:05:35]} O-O {[%emt 0:00:48]} 9. Qd3 {[%emt 0:04:28]} Nfd7 {[%emt 0:03:53]} 10. Be3 {[%emt 0:04:15]} Bf6 {[%emt 0:04:12]} 11. a4 {[%emt 0:05:33]} a5 {[%emt 0:00:53]} 12. Rad1 {[%emt 0:02:08]} Re8 {[%emt 0:02:53]} 13. Rfe1 {[%emt 0:01:55]} Qe7 {[%emt 0:14:08]} 14. Nb5 {[%emt 0:03:54]} Qd8 {[%emt 0:08:43]} 15. Qf1 {[%emt 0:19:52]} Ra6 {[%emt 0:08:11]} 16. Bxb6 {[%emt 0:05:30]} Rxb6 {[%emt 0:00:16]} 17. Qc4 {[%emt 0:00:14]} Qe7 {[%emt 0:03:13]} 18. Nxc7 {[%emt 0:01:12]} Rc6 {[%emt 0:00:44]} 19. Nd5 {[%emt 0:00:02]} Qd8 {[%emt 0:00:24]} 20. Nxf6+ {[%emt 0:08:11]} Qxf6 {[%emt 0:00:06]} 21. Qb5 {[%emt 0:00:14]} Rc5 {[%emt 0:01:50]} 22. Qd3 {[%emt 0:01:06]} Rc6 {[%emt 0:01:23]} 23. Qd4 {[%emt 0:04:57]} Ne5 {[%emt 0:00:11]} 24. Nxe5 {[%emt 0:00:07]} Rxe5 {[%emt 0:01:08]} 25. f4 {[%emt 0:02:25]} Re8 {[%emt 0:01:43]} 26. Qxf6 {[%emt 0:00:29]} gxf6 {[%emt 0:00:03]} 27. f5 {[%emt 0:00:29]} Re5 {[%emt 0:00:15]} 28. Kf2 {[%emt 0:01:23]} Kf8 {[%emt 0:00:03]} 29. Re2 {[%emt 0:02:04]} Ke7 {[%emt 0:00:29]} 30. Rd3 {[%emt 0:00:51]} b6 {[%emt 0:00:08]} 31. Bd5 {[%emt 0:00:38]} Rc7 {[%emt 0:00:07]} 32. c4 {[%emt 0:03:35]} Ba6 {[%emt 0:00:15]} 33. b3 {[%emt 0:00:04]} Rc8 {[%emt 0:00:34]} 34. Rg3 {[%emt 0:00:42]} Kf8 {[%emt 0:00:40]} 35. Ree3 {[%emt 0:00:14]} Rce8 {[%emt 0:00:06]} 36. Rh3 {[%emt 0:01:05]} Kg7 {[%emt 0:00:08]} 37. Reg3+ {[%emt 0:00:10]} Kh8 {[%emt 0:00:04]} 38. Rh6 {[%emt 0:01:04]} Rxf5+ {[%emt 0:00:22]} 39. exf5 {[%emt 0:00:09]} Re2+ {[%emt 0:00:03]} 40. Kxe2 {[%emt 0:00:00]} b5 {[%emt 0:00:00]} 41. Rgh3 {[%emt 0:00:26]} Kg7 {[%emt 0:00:14]} 42. Rxh7+ {[%emt 0:00:05]} Kf8 {[%emt 0:00:04]} 43. Rxf7+ {[%emt 0:00:04]} Kg8 {[%emt 0:00:03]} 44. Rd7+ {[%emt 0:00:07]} Kf8 {[%emt 0:00:04]} 45. Rh8# {[%emt 0:00:03]} 1-0

[Event "Polish Youth 1st League 2022"]
[Site "Lublin"]
[Date "2022.06.28"]
[Round "4.2"]
[White "Jendrowiak, Maciej"]
[Black "Nowak, Filip"]
[Result "1/2-1/2"]
[ECO "B22"]
[WhiteElo "1713"]
[BlackElo "1819"]
[Annotator "NA RC"]
[PlyCount "84"]
[EventDate "2022.06.24"]
[EventType "team-tourn"]
[EventCountry "POL"]
[SourceTitle "playchess.com"]
[Source "ChessBase"]
[SourceQuality "1"]
[TimeControl "40/5400+30:1800+30"]

1. e4 {[%emt 0:00:04]} c5 {[%emt 0:00:27]} 2. c3 {[%emt 0:00:12]} Nf6 {[%emt 0:00:23]} 3. e5 {[%emt 0:00:08]} Nd5 {[%emt 0:00:09]} 4. Nf3 {[%emt 0:00:16]} Nc6 {[%emt 0:01:10]} 5. Bc4 {[%emt 0:00:29]} Nb6 {[%emt 0:00:39]} 6. Bb3 {[%emt 0:00:16]} e6 {[%emt 0:04:48]} 7. d4 {[%emt 0:02:27]} cxd4 {[%emt 0:02:23]} 8. cxd4 {[%emt 0:00:31]} d6 {[%emt 0:00:20]} 9. Bg5 {[%emt 0:10:14]} Be7 {[%emt 0:04:20]} 10. Bxe7 {[%emt 0:00:44]} Qxe7 {[%emt 0:00:11]} 11. Nc3 {[%emt 0:00:52]} O-O {[%emt 0:02:10]} 12. O-O {[%emt 0:01:02]} dxe5 {[%emt 0:32:14]} 13. dxe5 {[%emt 0:00:44]} Nd7 {[%emt 0:00:21]} (13... Bd7 $11) 14. Qe2 {[%emt 0:02:38]} Nc5 {[%emt 0:00:48]} 15. Bc2 {[%emt 0:01:15]} b6 $11 {[%emt 0:01:00]} 16. Rfd1 {[%emt 0:02:59]} Ba6 {[%emt 0:02:03]} 17. Qe3 {[%emt 0:01:33]} Nb4 {[%emt 0:05:38]} 18. Bb1 {[%emt 0:02:14]} Rfd8 {[%emt 0:01:54]} 19. Nd4 $1 {[%emt 0:07:34]} Rac8 {[%emt 0:08:13]} 20. a3 {[%emt 0:03:27]} Nd5 {[%emt 0:01:41]} 21. Nxd5 {[%emt 0:06:58]} Rxd5 {[%emt 0:00:08]} 22. b4 {[%emt 0:06:08]} Na4 {[%emt 0:10:22]} 23. Be4 {[%emt 0:03:28]} Rd7 {[%emt 0:06:31]} 24. Nc6 {[%emt 0:18:29]} Rxd1+ {[%emt 0:06:24]} 25. Rxd1 {[%emt 0:00:22]} Qc7 {[%emt 0:00:08]} 26. Qd4 {[%emt 0:04:30]} g6 {[%emt 0:00:51]} 27. Qd7 {[%emt 0:05:31]} Qxd7 {[%emt 0:02:20]} 28. Rxd7 {[%emt 0:00:09]} Bb5 {[%emt 0:00:09]} 29. Ne7+ {[%emt 0:00:35]} Kf8 {[%emt 0:00:14]} 30. Nxc8 {[%emt 0:00:06]} Bxd7 {[%emt 0:00:10]} 31. Nxa7 {[%emt 0:00:09]} Nc3 {[%emt 0:00:56]} 32. Bb7 {[%emt 0:09:37]} Ne2+ {[%emt 0:03:26]} 33. Kf1 {[%emt 0:00:45]} Nd4 {[%emt 0:00:06]} 34. Nc8 {[%emt 0:04:01]} Bxc8 {[%emt 0:00:53]} 35. Bxc8 {[%emt 0:00:02]} Ke7 {[%emt 0:02:03]} 36. Bb7 {[%emt 0:01:39]} Nc2 {[%emt 0:00:53]} 37. Ke2 {[%emt 0:00:09]} Nxa3 {[%emt 0:01:30]} 38. Kd3 {[%emt 0:00:18]} Nb5 {[%emt 0:00:09]} 39. Kc4 {[%emt 0:00:26]} Nc7 {[%emt 0:00:06]} 40. f4 {[%emt 0:00:00]} h5 {[%emt 0:00:00]} 41. g3 {[%emt 0:00:49]} Kd8 {[%emt 0:04:05]} 42. Kd4 {[%emt 0:04:55]} Ke7 {[%emt 0:00:26]} 1/2-1/2

[Event "Polish Youth 1st League 2022"]
[Site "Lublin"]
[Date "2022.06.28"]
[Round "4.3"]
[White "Grot, Blazej"]
[Black "Wierzbicki, Dawid"]
[Result "1-0"]
[ECO "B42"]
[WhiteElo "1819"]
[BlackElo "1556"]
[Annotator "NA RC"]
[PlyCount "89"]
[EventDate "2022.06.24"]
[EventType "team-tourn"]
[EventCountry "POL"]
[SourceTitle "playchess.com"]
[Source "ChessBase"]
[SourceQuality "1"]
[TimeControl "40/5400+30:1800+30"]

1. e4 {[%emt 0:00:03]} c5 {[%emt 0:00:14]} 2. Nf3 {[%emt 0:00:06]} e6 {[%emt 0:00:23]} 3. d4 {[%emt 0:00:13]} cxd4 {[%emt 0:00:24]} 4. Nxd4 {[%emt 0:00:06]} a6 {[%emt 0:00:18]} 5. Bd3 {[%emt 0:01:22]} Nf6 {[%emt 0:00:53]} 6. Qe2 {[%emt 0:01:10]} d6 {[%emt 0:02:00]} 7. c4 {[%emt 0:00:14]} b6 {[%emt 0:01:01]} 8. Nc3 {[%emt 0:01:26]} Bb7 {[%emt 0:00:09]} 9. f4 {[%emt 0:00:20]} Nbd7 {[%emt 0:02:13]} 10. O-O {[%emt 0:01:44]} Be7 {[%emt 0:02:58]} 11. b4 {[%emt 0:05:19]} Qc8 {[%emt 0:06:25]} 12. Bd2 {[%emt 0:08:23]} h5 {[%emt 0:05:39]} 13. Rae1 {[%emt 0:07:12]} g6 {[%emt 0:03:12] [#]} 14. Nd5 $1 {[%emt 0:11:37]} exd5 $18 {[%emt 0:31:07]} 15. exd5 {[%emt 0:00:08]} Ng8 {[%emt 0:00:28]} 16. f5 {[%emt 0:05:13]} Ne5 {[%emt 0:01:15]} 17. fxg6 {[%emt 0:01:56]} fxg6 {[%emt 0:01:03]} 18. Bf4 {[%emt 0:00:26]} Qg4 {[%emt 0:06:03]} 19. Bxe5 {[%emt 0:02:24]} Qxe2 {[%emt 0:00:34]} 20. Rxe2 {[%emt 0:03:06]} dxe5 {[%emt 0:00:28]} 21. Bxg6+ {[%emt 0:00:29]} Kd8 {[%emt 0:00:36]} 22. Ne6+ {[%emt 0:06:46]} Kc8 {[%emt 0:00:46]} 23. d6 {[%emt 0:05:26]} Bxd6 {[%emt 0:06:55]} 24. Rd2 {[%emt 0:00:06]} Ne7 {[%emt 0:00:46]} 25. Rxd6 {[%emt 0:02:33]} Nxg6 {[%emt 0:00:22]} 26. Rf7 {[%emt 0:00:23]} Nf4 {[%emt 0:02:14]} 27. Nxf4 {[%emt 0:04:02]} exf4 {[%emt 0:00:41]} 28. Rxb6 {[%emt 0:00:15]} Rb8 {[%emt 0:01:44]} 29. Rxf4 {[%emt 0:03:27]} Rd8 {[%emt 0:00:44]} (29... Kc7 {should be considered.} 30. Rg6 Rbf8 31. Rg7+ Kb8 32. Rxf8+ Rxf8) 30. c5 {[%emt 0:03:00]} Ba8 {[%emt 0:07:14]} 31. Rxa6 {[%emt 0:02:49]} Kd7 {[%emt 0:03:48]} 32. Rd4+ {[%emt 0:01:52]} Ke7 {[%emt 0:01:29]} 33. Rxd8 {[%emt 0:00:20]} Rxd8 {[%emt 0:00:17]} 34. c6 {[%emt 0:00:29]} Kd6 {[%emt 0:01:32]} 35. a4 {[%emt 0:00:40]} Rf8 {[%emt 0:01:34]} 36. b5 {[%emt 0:00:13]} Kc7 {[%emt 0:00:22]} 37. Ra7+ {[%emt 0:01:30]} Kb6 {[%emt 0:00:06]} 38. Rh7 {[%emt 0:00:56]} Ka5 {[%emt 0:02:15]} 39. Rxh5 {[%emt 0:00:36]} Kxa4 {[%emt 0:00:08]} 40. h4 {[%emt 0:00:00]} Rf4 {[%emt 0:00:00]} 41. Rh8 {[%emt 0:03:00]} Kxb5 {[%emt 0:01:11]} 42. Rxa8 {[%emt 0:00:03]} Kxc6 {[%emt 0:00:05]} 43. g3 {[%emt 0:00:03]} Rb4 {[%emt 0:00:14]} 44. Kg2 {[%emt 0:00:17]} Kd6 {[%emt 0:00:13]} 45. Re8 {[%emt 0:00:05]} 1-0

[Event "Polish Youth 1st League 2022"]
[Site "Lublin"]
[Date "2022.06.28"]
[Round "4.4"]
[White "Oles, Mateusz"]
[Black "Rozanski, Mateusz"]
[Result "1/2-1/2"]
[ECO "C50"]
[WhiteElo "1201"]
[BlackElo "1720"]
[Annotator "NA RC"]
[PlyCount "115"]
[EventDate "2022.06.24"]
[EventType "team-tourn"]
[EventCountry "POL"]
[SourceTitle "playchess.com"]
[Source "ChessBase"]
[SourceQuality "1"]
[TimeControl "40/5400+30:1800+30"]

1. e4 {[%emt 0:00:03]} e5 {[%emt 0:00:04]} 2. Nf3 {[%emt 0:00:23]} Nc6 {[%emt 0:00:41]} 3. Bc4 {[%emt 0:00:44]} d6 {[%emt 0:00:19]} 4. O-O {[%emt 0:01:10]} Be7 {[%emt 0:00:17]} 5. c3 {[%emt 0:01:22]} Nf6 {[%emt 0:00:21]} 6. d3 {[%emt 0:02:16]} O-O {[%emt 0:00:33]} 7. h3 {[%emt 0:01:02]} h6 {[%emt 0:02:46]} 8. Re1 {[%emt 0:02:43]} a6 {[%emt 0:01:00]} 9. a4 {[%emt 0:07:47]} Na5 {[%emt 0:01:55]} 10. Ba2 {[%emt 0:00:29]} c5 {[%emt 0:01:22]} 11. Nbd2 {[%emt 0:02:55]} Nc6 {[%emt 0:01:33]} 12. Nf1 {[%emt 0:02:31]} Re8 {[%emt 0:02:29]} 13. Ng3 {[%emt 0:02:07]} Bf8 {[%emt 0:00:34]} 14. d4 {[%emt 0:06:11]} exd4 {[%emt 0:00:36]} 15. cxd4 {[%emt 0:00:12]} cxd4 {[%emt 0:00:27]} 16. Nxd4 {[%emt 0:00:40]} d5 {[%emt 0:00:51]} 17. Nxc6 {[%emt 0:05:32]} bxc6 {[%emt 0:00:06]} 18. exd5 {[%emt 0:14:39]} Rxe1+ {[%emt 0:00:07]} 19. Qxe1 {[%emt 0:00:04]} cxd5 {[%emt 0:00:06]} 20. Be3 {[%emt 0:04:40]} Be6 {[%emt 0:00:33]} 21. a5 {[%emt 0:05:41]} Bd6 {[%emt 0:01:12]} 22. Bb6 {[%emt 0:01:01]} Qd7 {[%emt 0:01:49]} 23. Qe2 {[%emt 0:11:19]} Bb4 {[%emt 0:04:34]} 24. Bb3 {[%emt 0:02:54]} Qd6 {[%emt 0:01:24]} 25. Rc1 {[%emt 0:02:15]} Nd7 {[%emt 0:00:28]} 26. Bc7 {[%emt 0:01:10]} Qe7 {[%emt 0:00:36]} 27. Ba4 {[%emt 0:02:30]} Nc5 {[%emt 0:00:18]} 28. Rxc5 {[%emt 0:18:14]} Qxc5 {[%emt 0:00:35]} 29. Bb6 {[%emt 0:00:47]} Qc1+ {[%emt 0:00:09]} 30. Kh2 {[%emt 0:00:14]} Bc5 {[%emt 0:01:14]} 31. Bxc5 {[%emt 0:01:13]} Qxc5 {[%emt 0:00:06]} 32. Qd2 {[%emt 0:00:46]} d4 {[%emt 0:00:19]} 33. Ne4 {[%emt 0:00:50]} Qe5+ {[%emt 0:00:10]} 34. Ng3 {[%emt 0:00:05]} g5 {[%emt 0:00:34]} 35. Bd1 {[%emt 0:00:23]} f5 {[%emt 0:00:34]} 36. Kg1 {[%emt 0:00:40]} f4 {[%emt 0:01:08]} 37. Ne2 {[%emt 0:00:35]} Rd8 {[%emt 0:00:29]} 38. Qd3 {[%emt 0:00:29]} Bf5 {[%emt 0:00:19]} 39. Qxa6 {[%emt 0:00:46]} d3 {[%emt 0:01:18]} 40. Bb3+ {[%emt 0:00:00]} Kg7 {[%emt 0:00:00]} 41. Nc3 {[%emt 0:02:33]} d2 {[%emt 0:01:29]} 42. Qb6 {[%emt 0:01:52]} Re8 {[%emt 0:02:03]} 43. a6 {[%emt 0:03:46]} f3 {[%emt 0:00:39]} 44. gxf3 {[%emt 0:05:09]} h5 {[%emt 0:01:51]} 45. a7 {[%emt 0:06:52]} Qe1+ {[%emt 0:00:42]} 46. Kh2 {[%emt 0:03:58]} Qe5+ {[%emt 0:00:50]} 47. Kg2 {[%emt 0:01:35]} Qe1 {[%emt 0:09:27]} 48. Qc7+ {[%emt 0:03:32]} Kh8 {[%emt 0:00:35]} 49. Qb6 {[%emt 0:03:23]} Bxh3+ {[%emt 0:02:27]} 50. Kh2 {[%emt 0:01:13]} Be6 {[%emt 0:00:57]} 51. Bxe6 {[%emt 0:01:23]} Qe5+ {[%emt 0:00:29]} 52. Kg2 {[%emt 0:00:31]} g4 {[%emt 0:00:10]} 53. Bxg4 {[%emt 0:01:19]} hxg4 {[%emt 0:00:24]} 54. Qh6+ {[%emt 0:00:22]} Kg8 {[%emt 0:00:08]} 55. Qg6+ {[%emt 0:00:09]} Kh8 {[%emt 0:00:23]} 56. Qh6+ {[%emt 0:00:28]} Kg8 {[%emt 0:00:56]} 57. Qg6+ {[%emt 0:00:16]} Kh8 {[%emt 0:00:15]} 58. Qh6+ {[%emt 0:00:27]} 1/2-1/2

[Event "Polish Youth 1st League 2022"]
[Site "Lublin"]
[Date "2022.06.28"]
[Round "4.5"]
[White "Krzyzosiak, Marta"]
[Black "Kucharska, Helena"]
[Result "0-1"]
[ECO "A06"]
[WhiteElo "1666"]
[BlackElo "1630"]
[Annotator "NA RC"]
[PlyCount "94"]
[EventDate "2022.06.24"]
[EventType "team-tourn"]
[EventCountry "POL"]
[SourceTitle "playchess.com"]
[Source "ChessBase"]
[SourceQuality "1"]
[TimeControl "40/5400+30:1800+30"]

1. Nf3 {[%emt 0:00:02]} d5 {[%emt 0:00:05]} 2. g3 {[%emt 0:00:06]} Nd7 {[%emt 0:00:05]} 3. d4 {[%emt 0:01:38]} e6 {[%emt 0:00:05]} 4. Bg2 {[%emt 0:00:28]} b5 {[%emt 0:00:34]} 5. O-O {[%emt 0:03:47]} Ngf6 {[%emt 0:00:46]} 6. Nbd2 {[%emt 0:01:47]} c5 {[%emt 0:05:28]} 7. c3 {[%emt 0:07:45]} Bb7 {[%emt 0:04:54]} 8. Re1 {[%emt 0:06:27]} Be7 {[%emt 0:01:03]} 9. Nb3 {[%emt 0:09:45]} O-O {[%emt 0:03:20]} 10. Nxc5 {[%emt 0:04:13]} Nxc5 {[%emt 0:03:37]} 11. dxc5 {[%emt 0:00:06]} Bxc5 {[%emt 0:00:08]} 12. e3 {[%emt 0:04:15]} a5 {[%emt 0:03:49]} 13. a4 {[%emt 0:06:29]} bxa4 {[%emt 0:04:11]} 14. Qxa4 {[%emt 0:02:17]} Qc7 {[%emt 0:01:35]} 15. Qd1 {[%emt 0:13:40]} Ne4 {[%emt 0:03:12]} 16. Nd2 {[%emt 0:04:22]} Nd6 {[%emt 0:01:10]} 17. b3 {[%emt 0:01:39]} Rfd8 {[%emt 0:02:52]} 18. Bb2 {[%emt 0:01:59]} f5 {[%emt 0:17:19]} 19. Qc2 {[%emt 0:05:52]} Rac8 {[%emt 0:04:53]} 20. Rec1 {[%emt 0:04:35]} Bb6 {[%emt 0:09:39]} 21. Qb1 {[%emt 0:07:45]} Qd7 {[%emt 0:04:18]} 22. c4 {[%emt 0:06:47]} dxc4 {[%emt 0:01:48]} 23. Bxb7 {[%emt 0:00:37]} Qxb7 {[%emt 0:01:01]} 24. Nxc4 {[%emt 0:00:15]} Nxc4 {[%emt 0:00:33]} 25. Rxc4 {[%emt 0:00:46]} Rxc4 {[%emt 0:00:18]} 26. bxc4 {[%emt 0:00:04]} Bxe3 {[%emt 0:10:01]} 27. Bc3 {[%emt 0:05:42]} Qf3 {[%emt 0:00:32]} 28. Qf1 {[%emt 0:00:42]} Bxf2+ {[%emt 0:01:12]} 29. Qxf2 {[%emt 0:00:08]} Qxc3 {[%emt 0:00:05]} 30. Ra2 {[%emt 0:00:59]} Qxc4 {[%emt 0:08:43]} 31. Rc2 {[%emt 0:00:31]} Qe4 {[%emt 0:01:02]} 32. Rc1 {[%emt 0:00:25]} Qd4 {[%emt 0:02:29]} 33. Qxd4 {[%emt 0:00:30]} Rxd4 {[%emt 0:00:06]} 34. Rc6 {[%emt 0:00:27]} Kf7 {[%emt 0:00:24]} 35. Ra6 {[%emt 0:00:11]} a4 {[%emt 0:00:08]} 36. Kf2 {[%emt 0:00:27]} g5 {[%emt 0:00:53]} 37. Ra7+ {[%emt 0:00:22]} Kg6 {[%emt 0:00:20]} 38. Re7 {[%emt 0:00:14]} Re4 {[%emt 0:00:21]} 39. h4 {[%emt 0:00:44]} gxh4 {[%emt 0:00:30]} 40. gxh4 {[%emt 0:00:00]} h5 {[%emt 0:00:00]} 41. Kg3 {[%emt 0:01:44]} Kf6 {[%emt 0:03:31]} 42. Ra7 {[%emt 0:00:32]} Rb4 {[%emt 0:00:41]} 43. Ra6 {[%emt 0:00:16]} f4+ {[%emt 0:00:53]} 44. Kf3 {[%emt 0:00:16]} Kf5 {[%emt 0:00:09]} 45. Ra5+ {[%emt 0:00:16]} e5 {[%emt 0:00:11]} 46. Ra8 {[%emt 0:00:10]} Rb3+ {[%emt 0:00:26]} 47. Kf2 {[%emt 0:00:07]} a3 {[%emt 0:00:19]} 0-1

[Event "Polish Youth 1st League 2022"]
[Site "Lublin"]
[Date "2022.06.28"]
[Round "4.6"]
[White "Seemann, Pola"]
[Black "Wieczorek, Maja"]
[Result "0-1"]
[ECO "B07"]
[WhiteElo "1777"]
[BlackElo "1316"]
[Annotator "NA RC"]
[PlyCount "92"]
[EventDate "2022.06.24"]
[EventType "team-tourn"]
[EventCountry "POL"]
[SourceTitle "playchess.com"]
[Source "ChessBase"]
[SourceQuality "1"]
[TimeControl "40/5400+30:1800+30"]

1. e4 {[%emt 0:00:02]} d6 {[%emt 0:00:15]} 2. d4 {[%emt 0:00:06]} Nf6 {[%emt 0:00:05]} 3. Nc3 {[%emt 0:00:09]} g6 {[%emt 0:00:10]} 4. h3 {[%emt 0:01:10]} c6 {[%emt 0:02:15]} 5. Nf3 {[%emt 0:00:32]} Bg7 {[%emt 0:00:22]} 6. Be3 {[%emt 0:02:38]} b5 {[%emt 0:08:41]} 7. Bd3 {[%emt 0:03:54]} a5 {[%emt 0:03:23]} 8. a3 {[%emt 0:04:43]} O-O {[%emt 0:03:03]} 9. d5 {[%emt 0:05:58]} Bb7 {[%emt 0:06:09]} 10. dxc6 {[%emt 0:02:42]} Bxc6 {[%emt 0:00:27]} 11. Nd4 {[%emt 0:15:15]} b4 {[%emt 0:04:25]} 12. axb4 {[%emt 0:02:07]} axb4 {[%emt 0:00:27]} 13. Nxc6 {[%emt 0:05:00]} Nxc6 {[%emt 0:00:18]} 14. Ne2 {[%emt 0:12:03]} Ne5 {[%emt 0:02:32]} 15. O-O {[%emt 0:03:28]} Nfd7 {[%emt 0:07:39]} 16. Bd4 {[%emt 0:04:38]} Rxa1 {[%emt 0:15:05]} 17. Qxa1 {[%emt 0:00:18]} Nxd3 {[%emt 0:00:52]} 18. Bxg7 {[%emt 0:03:15]} Kxg7 {[%emt 0:00:18]} 19. cxd3 {[%emt 0:00:59]} Nc5 {[%emt 0:01:32]} 20. Rd1 {[%emt 0:04:37]} Qb6 {[%emt 0:04:00]} 21. Ng3 {[%emt 0:05:07]} Qb5 {[%emt 0:05:12]} 22. d4 {[%emt 0:03:29]} Nd3 {[%emt 0:01:59]} 23. Qb1 {[%emt 0:07:59]} Nf4 {[%emt 0:01:42]} 24. Re1 {[%emt 0:00:58]} Rc8 {[%emt 0:02:10]} 25. Kh2 {[%emt 0:02:51]} Nd3 {[%emt 0:01:14]} 26. Re3 {[%emt 0:01:23]} Nf4 {[%emt 0:01:20]} 27. Qd1 {[%emt 0:00:43]} Qg5 {[%emt 0:04:56]} 28. Nf5+ {[%emt 0:02:33]} Kf8 {[%emt 0:03:50]} 29. Rg3 {[%emt 0:00:10]} Qf6 {[%emt 0:01:15]} 30. Qg4 {[%emt 0:01:44]} Ne6 {[%emt 0:07:13]} 31. d5 {[%emt 0:00:50]} h5 {[%emt 0:00:24]} 32. Qd1 {[%emt 0:01:04]} Nc5 {[%emt 0:00:34]} 33. Nh6 {[%emt 0:00:54]} Nxe4 {[%emt 0:01:12]} 34. Rf3 {[%emt 0:01:20]} Qe5+ {[%emt 0:00:30]} 35. g3 {[%emt 0:02:31]} Nf6 {[%emt 0:01:04]} 36. Qd2 {[%emt 0:00:44]} Kg7 {[%emt 0:03:30]} 37. Nf5+ {[%emt 0:00:28]} gxf5 {[%emt 0:02:06]} 38. Qg5+ {[%emt 0:00:05]} Kf8 {[%emt 0:02:54]} 39. Rxf5 {[%emt 0:00:06]} Qxb2 {[%emt 0:00:50]} 40. Qh6+ {[%emt 0:00:00]} Ke8 {[%emt 0:00:00]} 41. Qe3 {[%emt 0:01:02]} Qc3 {[%emt 0:06:22]} 42. Qa7 {[%emt 0:00:54]} b3 {[%emt 0:04:23]} 43. Qb7 {[%emt 0:00:17]} b2 {[%emt 0:07:25]} 44. Rf3 {[%emt 0:00:07]} Qc2 {[%emt 0:02:23]} 45. Re3 {[%emt 0:00:16]} Qxf2+ {[%emt 0:00:11]} 46. Kh1 {[%emt 0:00:04]} Rc1+ {[%emt 0:00:13]} 0-1

[Event "Polish Youth 1st League 2022"]
[Site "Lublin"]
[Date "2022.06.28"]
[Round "4.7"]
[White "Klim, Filip"]
[Black "Wieczorek, Mikolaj"]
[Result "1/2-1/2"]
[ECO "B92"]
[WhiteElo "2015"]
[BlackElo "1942"]
[Annotator "RC"]
[PlyCount "87"]
[EventDate "2022.06.24"]
[EventType "team-tourn"]
[EventCountry "POL"]
[SourceTitle "playchess.com"]
[Source "ChessBase"]
[SourceQuality "1"]
[TimeControl "40/5400+30:1800+30"]

1. e4 {[%emt 0:00:02]} c5 {[%emt 0:00:17]} 2. Nf3 {[%emt 0:00:05]} d6 {[%emt 0:00:03]} 3. d4 {[%emt 0:00:05]} cxd4 {[%emt 0:00:07]} 4. Nxd4 {[%emt 0:00:03]} Nf6 {[%emt 0:00:05]} 5. Nc3 {[%emt 0:00:05]} a6 {[%emt 0:00:03]} 6. Be2 {[%emt 0:00:17]} e5 {[%emt 0:00:14]} 7. Nb3 {[%emt 0:00:07]} Be7 {[%emt 0:00:17]} 8. O-O {[%emt 0:00:24]} O-O {[%emt 0:01:50]} 9. Qd3 {[%emt 0:00:09]} Be6 {[%emt 0:01:34]} 10. Bd2 {[%emt 0:00:49]} Nbd7 {[%emt 0:14:59]} 11. Nd5 {[%emt 0:00:26]} Bxd5 {[%emt 0:06:35]} 12. exd5 {[%emt 0:00:12]} Rc8 {[%emt 0:00:18]} 13. c4 {[%emt 0:03:15]} Ne8 {[%emt 0:10:56]} 14. Rac1 {[%emt 0:17:11]} f5 {[%emt 0:12:03]} 15. f4 {[%emt 0:04:14]} g6 {[%emt 0:05:24]} 16. Kh1 {[%emt 0:19:15]} Bf6 {[%emt 0:02:08]} 17. fxe5 {[%emt 0:04:34]} Nxe5 {[%emt 0:00:12]} 18. Qg3 {[%emt 0:09:40]} Ng7 {[%emt 0:04:50]} 19. Bh6 {[%emt 0:06:30]} Re8 {[%emt 0:05:29]} 20. Nd4 {[%emt 0:03:46]} Qb6 {[%emt 0:08:01]} 21. Nxf5 {[%emt 0:06:39]} Nxf5 {[%emt 0:01:37]} 22. Rxf5 {[%emt 0:01:14]} Bg7 {[%emt 0:00:10]} 23. Bxg7 {[%emt 0:02:44]} Kxg7 {[%emt 0:00:07]} 24. b3 {[%emt 0:01:42]} Rf8 {[%emt 0:04:26]} 25. Rxe5 {[%emt 0:01:59]} dxe5 {[%emt 0:00:40]} 26. Qxe5+ {[%emt 0:00:09]} Qf6 {[%emt 0:00:11]} 27. Qxf6+ {[%emt 0:00:35]} Kxf6 {[%emt 0:00:29]} 28. c5 {[%emt 0:02:12]} Rfe8 {[%emt 0:01:00]} 29. Rf1+ {[%emt 0:10:50]} Kg5 {[%emt 0:04:51]} 30. Bf3 {[%emt 0:03:08]} Rxc5 {[%emt 0:01:00]} 31. d6 {[%emt 0:00:07]} Rd8 {[%emt 0:01:52]} 32. Rd1 {[%emt 0:00:31]} b5 {[%emt 0:01:40]} 33. Bb7 {[%emt 0:01:31]} a5 {[%emt 0:00:06]} 34. d7 {[%emt 0:01:12]} Rc7 {[%emt 0:00:55]} 35. Bc8 {[%emt 0:01:24]} Rcxc8 {[%emt 0:01:35]} 36. Rd5+ {[%emt 0:00:48]} Kf4 {[%emt 0:00:14]} 37. dxc8=Q {[%emt 0:00:04]} Rxc8 {[%emt 0:00:02]} 38. Kg1 {[%emt 0:00:45]} Rc1+ {[%emt 0:00:30]} 39. Kf2 {[%emt 0:00:01]} Rc2+ {[%emt 0:00:05]} 40. Kf1 {[%emt 0:00:00]} Rxa2 {[%emt 0:00:00]} 41. Rxb5 {[%emt 0:05:06]} h5 {[%emt 0:07:51]} 42. Kg1 {[%emt 0:06:33]} g5 {[%emt 0:17:21]} 43. Rc5 {[%emt 0:01:52]} Ra3 {[%emt 0:07:39]} 44. Kf2 {[%emt 0:01:42]} 1/2-1/2

[Event "Polish Youth 1st League 2022"]
[Site "Lublin"]
[Date "2022.06.28"]
[Round "4.8"]
[White "Halhoul, Adam"]
[Black "Bartodziej, Bartosz"]
[Result "0-1"]
[ECO "D80"]
[WhiteElo "1675"]
[BlackElo "1902"]
[Annotator "RC"]
[PlyCount "118"]
[EventDate "2022.06.24"]
[EventType "team-tourn"]
[EventCountry "POL"]
[SourceTitle "playchess.com"]
[Source "ChessBase"]
[SourceQuality "1"]
[TimeControl "40/5400+30:1800+30"]

1. d4 Nf6 2. c4 g6 3. Nc3 d5 4. Bg5 Ne4 5. Bh4 Nxc3 6. bxc3 Bg7 7. e3 O-O 8. cxd5 h6 9. Bc4 b6 10. Nf3 Bb7 11. Qd3 Bxd5 12. Bxd5 Qxd5 13. Bxe7 Re8 14. Bh4 c5 15. O-O Nc6 16. a3 g5 17. Bg3 Rad8 18. Rab1 Na5 19. Qb5 Nc4 20. Qa4 g4 21. Ne5 Nd2 22. Bh4 Rc8 23. Qd1 Nxb1 24. Qxg4 Qe6 25. Rxb1 Qxg4 26. Nxg4 cxd4 27. cxd4 h5 28. Nf6+ Bxf6 29. Bxf6 Rc6 30. Bg5 Rc3 31. Rd1 Rec8 32. Kf1 Rc1 33. Ke2 Kf8 34. Rd2 R8c2 35. Bf4 Ke7 36. Bb8 a6 37. Ba7 Rxd2+ 38. Kxd2 Rb1 39. Kc2 Rf1 40. Bxb6 Rxf2+ 41. Kc3 Rxg2 42. Bc7 Re2 43. Bf4 Ke6 44. Kc4 Rc2+ 45. Kb3 Rd2 46. Kc3 Rd1 47. e4 Re1 48. d5+ Kd7 49. Kd4 Ra1 50. h4 Rxa3 51. Bg5 a5 52. Kc5 Ra4 53. e5 Re4 54. Bf6 a4 55. d6 a3 56. Kd5 Rf4 57. Bg7 a2 58. Kc5 Ke6 59. d7 Kxd7 0-1